fUSD/lending_fUSD_20260108
["ID","MTS","AMOUNT","RATE_DAILY","PERIOD"]
[400969588,1767875440850,-512.89819874,0.00018,2]
[400969590,1767875440859,-512.89819874,0.00018,2]
[400969592,1767875440868,-512.89819874,0.00018,2]
[400969594,1767875440878,-512.89819874,0.00018,2]
[400969596,1767875440887,-512.89819874,0.00018,2]
[400969598,1767875440896,-512.89819874,0.00018,2]
[400969600,1767875440905,-512.89819874,0.00018,2]
[400969602,1767875440914,-512.89819874,0.00018,2]
[400969604,1767875440924,-512.89819874,0.00018,2]
[400969606,1767875440933,-512.89819874,0.00018,2]
[400969608,1767875440942,-512.89819874,0.00018,2]
[400969610,1767875440951,-150.0,0.00018,2]
[400969612,1767875440960,-3823.52328067,0.00018,2]
[400969614,1767875440969,-150.0,0.00018,2]
[400969616,1767875440979,-4645.88845404,0.00018,2]
[400969618,1767875440988,-150.0,0.00018,2]
[400969620,1767875440997,-13407.89223482,0.00018,2]
[400969622,1767875441006,-150.0,0.00018,2]
[400969624,1767875441016,-2449.55923582,0.00018,2]
[400969626,1767875441025,-177.0,0.00018,2]
[400969628,1767875441034,-4051592.04338015,0.00018,2]
[400969656,1767875441290,173.15293318,0.0001001,2]
[400969860,1767875443291,-182.02591241,0.00013698,2]
[400969862,1767875443300,-1616.27300632,0.00015554,2]
[400969868,1767875443348,-378.96816864,0.00015554,2]
[400969870,1767875443359,-2448.77003185,0.00015554,2]
[400969947,1767875444091,-8500.79489185,0.00011687,2]
[400969949,1767875444102,-374.98879319,0.00015554,2]
[400969951,1767875444111,-151.0,0.00017589,2]
[400969953,1767875444122,-151.0,0.00017874,2]
[400969955,1767875444132,-691011.84606296,0.00018,2]
[400970096,1767875445488,-173.15293317,0.00011588,2]
[400970100,1767875445498,-151.0,0.00017589,2]
[400970102,1767875445507,-151.0,0.00017874,2]
[400970105,1767875445520,-1170.4725875,0.000179,2]
[400970108,1767875445530,-8544.052931,0.00018,2]
[400970111,1767875445544,-2297.64096379,0.00018,2]
[400970114,1767875445556,-1518.81597667,0.00018,2]
[400970117,1767875445567,-1009.42804069,0.00018,2]
[400970151,1767875445751,-3935.40875251,0.00018,2]
[400971430,1767875458621,10000.01,9.912e-05,2]
[400971434,1767875458645,10000.01,9.912e-05,2]
[400971437,1767875458668,10000.01,9.912e-05,2]
[400971441,1767875458691,3580.3523,9.912e-05,2]
[400972841,1767875473219,10000.01,9.912e-05,2]
[400972844,1767875473246,10000.01,9.912e-05,2]
[400972847,1767875473272,10000.01,9.912e-05,2]
[400972850,1767875473298,10000.01,9.912e-05,2]
[400972852,1767875473324,10000.01,9.912e-05,2]
[400972855,1767875473349,10000.01,9.912e-05,2]
[400972858,1767875473375,10000.01,9.912e-05,2]
[400972861,1767875473403,10000.01,9.912e-05,2]
[400972864,1767875473434,38075.42745348,9.912e-05,2]
[400972867,1767875473462,881924.49254652,9.912e-05,2]
[400973261,1767875488992,1000.0,9.912e-05,2]
[400973262,1767875501929,9000.01,9.912e-05,2]
[400973263,1767875501953,498.436,9.912e-05,2]
[400973264,1767875507443,2500.0,9.912e-05,2]
[400973270,1767875556432,3726.2263,9.912e-05,2]
[400973271,1767875566749,1713.58,8.218e-05,2]
[400973272,1767875567152,1713.58,8.633e-05,2]
[400973273,1767875567367,1713.58,9.049e-05,2]
[400973274,1767875567574,1133.0437,9.465e-05,2]
[400973275,1767875567601,580.5363,9.465e-05,2]
[400973276,1767875567982,1713.58,9.88e-05,2]
[400973277,1767875572298,-322.16513308,0.00010296,2]
[400973278,1767875573681,-152.90274074,0.00010296,2]
[400973279,1767875576761,-452.27880143,0.00010296,2]
[400973280,1767875580168,-288.11984291,0.00010296,2]
[400973281,1767875585160,-289.7249491,0.00010296,2]
[400973282,1767875586623,-157.47850945,0.00010296,2]
[400973283,1767875586910,2494.6112,9.912e-05,2]
[400973289,1767875621394,-50.91002329,0.00010296,2]
[400973290,1767875621425,-163.43138367,0.00010611,2]
[400973291,1767875638004,-14.06857793,0.00010611,2]
[400973292,1767875638027,-278.76388794,0.00010711,2]
[400973293,1767875639849,-280.60972387,0.00010711,2]
[400973294,1767875641809,-311.8925321,0.00010711,2]
[400973295,1767875644187,-303.05554958,0.00010711,2]
[400973296,1767875646140,-257.47850945,0.00010711,2]
[400973297,1767875649185,-168.91999983,0.00010711,2]
[400973300,1767875652234,231.40810775,0.0001011,2]
[400973301,1767875652422,503.28319711,0.0001011,2]
[400973304,1767875653875,1570.21915586,0.0001011,2]
[400973305,1767875653922,1570.21915586,0.0001011,2]
[400973306,1767875654044,1570.21915586,0.0001011,2]
[400973307,1767875654126,1570.21915586,0.0001011,2]
[400973308,1767875654177,1570.21915586,0.0001011,2]
[400973309,1767875654228,1570.21915586,0.0001011,2]
[400973310,1767875654287,578.69506484,0.0001011,2]
[400973311,1767875654315,991.52409102,0.0001011,2]
[400973312,1767875654358,1570.21915586,0.0001011,2]
[400973313,1767875654410,1570.21915586,0.0001011,2]
[400973314,1767875654461,1570.21915586,0.0001011,2]
[400973315,1767875654507,1570.21915586,0.0001011,2]
[400973316,1767875654554,1570.21915586,0.0001011,2]
[400973317,1767875654617,1157.39012968,0.0001011,2]
[400973318,1767875654642,412.82902618,0.0001011,2]
[400973319,1767875654691,1570.21915586,0.0001011,2]
[400973320,1767875654759,1570.21915586,0.0001011,2]
[400973321,1767875654842,1570.21915586,0.0001011,2]
[400973322,1767875654884,1570.21915586,0.0001011,2]
[400973323,1767875655147,-112.85979723,0.00010711,2]
[400973329,1767875691292,500.0,0.0001011,2]
[400973330,1767875693685,500.0,0.0001011,2]
[400973331,1767875697259,413.19724023,0.0001011,2]
[400973358,1767876631636,-240.0,0.00010982,2]
[400973359,1767876631646,-195.0,0.00010982,2]
[400973360,1767876631657,-195.0,0.00010983,2]
[400973361,1767876631671,-300.0,0.00010983,2]
[400973362,1767876631681,-121.09770713,0.00010985,2]
[400973363,1767876631693,-178.90229287,0.00010985,2]
[400973364,1767876631703,-300.0,0.00010988,2]
[400973365,1767876631714,-300.0,0.0001099,2]
[400973366,1767876631726,-431.1772499,0.0001099,2]
[400973367,1767876631736,-250.0,0.00010993,2]
[400973368,1767876631746,-250.0,0.00011017,2]
[400973369,1767876631756,-2733.43447149,0.00011026,2]
[400973370,1767876631768,-5326.68,0.00011026,2]
[400973371,1767876631779,-9280.0,0.00011026,2]
[400973372,1767876631790,-764.48554386,0.00011026,2]
[400973373,1767876631807,-413.60445614,0.00011026,2]
[400973374,1767876631857,-510767.12955574,0.00011026,2]
[400973375,1767876631873,-30425.12122847,0.00011026,2]
[400973376,1767876631886,-114878.02538076,0.00011026,2]
[400973377,1767876631899,-59595.72958139,0.00011026,2]
[400973378,1767876631911,-1056.03362672,0.00011026,2]
[400973379,1767876631923,-8301.16846777,0.00011026,2]
[400973380,1767876631938,-9805.73974299,0.00011026,2]
[400973381,1767876631969,-38269.82737924,0.00011026,2]
[400973383,1767876631981,-626.31575954,0.00011026,2]
[400973384,1767876631994,-822.10562034,0.00011026,2]
[400973387,1767876632014,-1008.74102828,0.00011026,2]
[400973429,1767876638387,-5198.09525831,0.00011026,2]
[400973432,1767876638409,-464.4392842,0.00011026,2]
[400973434,1767876638421,-13793.96453386,0.00011026,2]
[400973437,1767876638434,-459.225,0.00011026,2]
[400973439,1767876638445,-6424.59719045,0.00011026,2]
[400973441,1767876638456,-2188.98332652,0.00011026,2]
[400973444,1767876638478,-731.46652924,0.00011026,2]
[400973449,1767876638518,-8455.01119255,0.00011026,2]
[400973452,1767876638529,-2322.15647266,0.00011026,2]
[400973454,1767876638540,-19750.38025944,0.00011026,2]
[400973577,1767876639876,-1273.216,0.00011026,2]
[400973579,1767876639889,-2158.4752107,0.00011026,2]
[400973584,1767876639931,-1537.79572846,0.00011026,2]
[400973587,1767876639944,-388.09645538,0.00011026,2]
[400973593,1767876639989,-140779.9557155,0.00011026,2]
[400973595,1767876639998,-1200.0,0.00011118,2]
[400973597,1767876640008,-300.0,0.00011119,2]
[400973599,1767876640017,-150.0,0.00011119,2]
[400973601,1767876640026,-1200.0,0.00011119,2]
[400973603,1767876640035,-300.0,0.00011119,2]
[400973605,1767876640045,-300.0,0.00011119,2]
[400973607,1767876640054,-463.55,0.0001112,2]
[400973609,1767876640063,-151.0,0.0001112,2]
[400973611,1767876640072,-151.0,0.0001112,2]
[400973613,1767876640082,-151.0,0.0001112,2]
[400973615,1767876640091,-151.0,0.0001112,2]
[400973617,1767876640100,-500.0,0.0001112,2]
[400973619,1767876640109,-151.0,0.0001112,2]
[400973621,1767876640119,-151.0,0.0001112,2]
[400973623,1767876640128,-151.0,0.0001112,2]
[400973625,1767876640137,-151.0,0.0001112,2]
[400973627,1767876640146,-151.0,0.0001112,2]
[400973629,1767876640156,-200.0,0.0001112,2]
[400973631,1767876640165,-151.0,0.0001112,2]
[400973633,1767876640174,-151.0,0.0001112,2]
[400973635,1767876640184,-151.0,0.0001112,2]
[400973637,1767876640193,-151.0,0.0001112,2]
[400973639,1767876640202,-151.0,0.0001112,2]
[400973641,1767876640211,-626.22881488,0.0001112,2]
[400973643,1767876640220,-151.0,0.0001112,2]
[400973645,1767876640230,-151.0,0.0001112,2]
[400973647,1767876640239,-151.0,0.0001112,2]
[400973649,1767876640248,-151.0,0.0001112,2]
[400973651,1767876640256,-200.0,0.0001112,2]
[400973653,1767876640265,-151.0,0.0001112,2]
[400973655,1767876640274,-151.0,0.0001112,2]
[400973657,1767876640283,-151.0,0.0001112,2]
[400973659,1767876640292,-151.0,0.0001112,2]
[400973661,1767876640300,-151.0,0.0001112,2]
[400973663,1767876640309,-151.0,0.0001112,2]
[400973665,1767876640318,-151.0,0.0001112,2]
[400973668,1767876640327,-151.0,0.0001112,2]
[400973671,1767876640336,-151.0,0.0001112,2]
[400973673,1767876640345,-151.0,0.0001112,2]
[400973676,1767876640356,-151.0,0.0001112,2]
[400973678,1767876640365,-151.0,0.0001112,2]
[400973680,1767876640374,-151.0,0.0001112,2]
[400973682,1767876640383,-500.0,0.00011124,2]
[400973684,1767876640393,-500.0,0.00011124,2]
[400973686,1767876640402,-500.0,0.00011124,2]
[400973688,1767876640411,-467.64462211,0.00011124,2]
[400973690,1767876640421,-500.0,0.00011124,2]
[400973692,1767876640430,-500.0,0.00011124,2]
[400973694,1767876640440,-500.0,0.00011124,2]
[400973696,1767876640449,-500.0,0.00011124,2]
[400973698,1767876640458,-500.0,0.00011124,2]
[400973700,1767876640467,-500.0,0.00011124,2]
[400973702,1767876640476,-500.0,0.00011124,2]
[400973704,1767876640484,-500.0,0.00011124,2]
[400973706,1767876640494,-500.0,0.00011124,2]
[400973708,1767876640503,-500.0,0.00011124,2]
[400973710,1767876640512,-500.0,0.00011124,2]
[400973712,1767876640521,-500.0,0.00011124,2]
[400973714,1767876640530,-500.0,0.00011124,2]
[400973716,1767876640539,-500.0,0.00011124,2]
[400973718,1767876640547,-500.0,0.00011124,2]
[400973720,1767876640558,-500.0,0.00011124,2]
[400973722,1767876640567,-368.67277429,0.00011126,2]
[400973724,1767876640578,-500.0,0.00011126,2]
[400973726,1767876640587,-275.38684998,0.00011126,2]
[400973728,1767876640596,-500.0,0.00011126,2]
[400973730,1767876640605,-323.62429135,0.00011126,2]
[400973732,1767876640614,-369.86782327,0.00011126,2]
[400973734,1767876640624,-1713.58,0.00011127,2]
[400973736,1767876640633,-9999.99,0.00011127,2]
[400973738,1767876640643,-150.99,0.00011127,2]
[400973740,1767876640652,-9999.99,0.00011127,2]
[400973742,1767876640661,-5441.69,0.00011127,2]
[400973744,1767876640670,-4112.9,0.00011127,2]
[400973746,1767876640679,-2507.77,0.00011127,2]
[400973748,1767876640689,-36923.16,0.00011127,2]
[400973750,1767876640698,-7632.64,0.00011127,2]
[400973752,1767876640707,-347.78,0.00011127,2]
[400973754,1767876640716,-9999.99,0.00011127,2]
[400973756,1767876640725,-999.99,0.00011127,2]
[400973758,1767876640734,-499.99,0.00011127,2]
[400973760,1767876640743,-500.0,0.00011127,2]
[400973762,1767876640752,-644.1,0.00011375,2]
[400973764,1767876640761,-463.55,0.00011394,2]
[400973766,1767876640771,-1713.58,0.00011542,2]
[400973768,1767876640780,-463.55,0.00011668,2]
[400973770,1767876640789,-273.84,0.00011678,2]
[400973772,1767876640798,-1476.79,0.00011681,2]
[400973774,1767876640810,-463.55,0.00011942,2]
[400973776,1767876640820,-1713.58,0.00011958,2]
[400973778,1767876640829,-1500.0,0.00011979,2]
[400973780,1767876640839,-195.0,0.0001208,2]
[400973782,1767876640850,-250.0,0.0001208,2]
[400973784,1767876640860,-300.0,0.0001208,2]
[400973786,1767876640869,-300.0,0.0001208,2]
[400973788,1767876640878,-188.94617776,0.0001208,2]
[400973790,1767876640887,-300.0,0.0001208,2]
[400973792,1767876640897,-300.0,0.0001208,2]
[400973794,1767876640906,-195.0,0.0001208,2]
[400973796,1767876640915,-303.69807533,0.0001208,2]
[400973798,1767876640923,-195.0,0.0001208,2]
[400973800,1767876640933,-255.0,0.00012165,2]
[400973802,1767876640943,-463.58,0.00012216,2]
[400973804,1767876640952,-420.0,0.00012217,2]
[400973806,1767876640961,-420.0,0.00012217,2]
[400973807,1767876640971,-1680.0,0.0001223,2]
[400973809,1767876640981,-1713.58,0.00012374,2]
[400973811,1767876640991,-894.29,0.00012429,2]
[400973813,1767876641001,-1713.58,0.00012789,2]
[400973816,1767876641010,-173.15293317,0.00013166,2]
[400973817,1767876641020,-1713.58,0.00013205,2]
[400973819,1767876641030,-166.66,0.00013264,2]
[400973821,1767876641039,-587.0,0.00013424,2]
[400973823,1767876641048,-234.0,0.00013424,2]
[400973826,1767876641058,-2351.0,0.00013453,2]
[400973827,1767876641068,-1713.58,0.0001362,2]
[400973829,1767876641078,-2500.0,0.00013632,2]
[400973831,1767876641087,-200.0,0.00013699,2]
[400973833,1767876641096,-166.66,0.00013702,2]
[400973835,1767876641105,-235.57802038,0.0001371,2]
[400973838,1767876641114,-666.35774147,0.0001371,2]
[400973840,1767876641123,-1456.22993863,0.0001371,2]
[400973841,1767876641133,-11316.28,0.00013722,2]
[400973843,1767876641142,-11316.28,0.00013722,2]
[400973846,1767876641151,-6072.10307612,0.0001381,2]
[400973847,1767876641160,-322.61070001,0.00013909,2]
[400973849,1767876641169,-166.77833559,0.00013909,2]
[400973851,1767876641178,-500.0,0.00013909,2]
[400973854,1767876641189,-500.0,0.00013909,2]
[400973856,1767876641198,-1500.0,0.00013909,2]
[400973858,1767876641206,-500.0,0.00013909,2]
[400973860,1767876641215,-1500.0,0.00013909,2]
[400973861,1767876641225,-500.0,0.00013909,2]
[400973863,1767876641234,-1500.0,0.00013909,2]
[400973865,1767876641243,-500.0,0.00013909,2]
[400973867,1767876641252,-1500.0,0.00013909,2]
[400973870,1767876641261,-500.0,0.00013909,2]
[400973872,1767876641272,-1500.0,0.00013909,2]
[400973874,1767876641285,-250.0,0.00013909,2]
[400973876,1767876641294,-500.0,0.00013909,2]
[400973878,1767876641304,-1500.0,0.00013909,2]
[400973879,1767876641314,-500.0,0.00013909,2]
[400973882,1767876641323,-1500.0,0.00013909,2]
[400973883,1767876641332,-500.0,0.00013909,2]
[400973885,1767876641341,-500.0,0.00013909,2]
[400973887,1767876641351,-1500.0,0.00013909,2]
[400973890,1767876641360,-500.0,0.00013909,2]
[400973892,1767876641369,-1500.0,0.00013909,2]
[400973894,1767876641378,-238.63712889,0.00013909,2]
[400973896,1767876641388,-151.0,0.00013909,2]
[400973898,1767876641398,-500.0,0.00013909,2]
[400973900,1767876641407,-500.0,0.00013909,2]
[400973902,1767876641416,-500.0,0.00013909,2]
[400973904,1767876641425,-500.0,0.00013909,2]
[400973906,1767876641434,-500.0,0.00013909,2]
[400973908,1767876641444,-500.0,0.00013909,2]
[400973910,1767876641453,-500.0,0.00013909,2]
[400973912,1767876641462,-500.0,0.00013909,2]
[400973914,1767876641471,-500.0,0.00013909,2]
[400973915,1767876641481,-500.0,0.00013909,2]
[400973917,1767876641490,-500.0,0.00013909,2]
[400973919,1767876641499,-500.0,0.00013909,2]
[400973922,1767876641509,-500.0,0.00013909,2]
[400973923,1767876641520,-500.0,0.00013909,2]
[400973925,1767876641530,-500.0,0.00013909,2]
[400973928,1767876641539,-500.0,0.00013909,2]
[400973929,1767876641548,-578.20924308,0.00013909,2]
[400973931,1767876641557,-500.0,0.00013909,2]
[400973934,1767876641567,-500.0,0.00013909,2]
[400973936,1767876641578,-500.0,0.00013909,2]
[400973938,1767876641587,-272.12855637,0.00013909,2]
[400973940,1767876641596,-500.0,0.00013909,2]
[400973942,1767876641605,-500.0,0.00013909,2]
[400973944,1767876641614,-620.0,0.00013909,2]
[400973946,1767876641624,-151.0,0.00013909,2]
[400973948,1767876641633,-250.0,0.00013909,2]
[400973949,1767876641642,-250.0,0.00013909,2]
[400973952,1767876641652,-250.0,0.00013909,2]
[400973954,1767876641661,-151.0,0.00013919,2]
[400973956,1767876641670,-151.0,0.00013919,2]
[400973958,1767876641679,-151.0,0.00013919,2]
[400973960,1767876641690,-151.0,0.00013919,2]
[400973962,1767876641698,-151.0,0.00013919,2]
[400973964,1767876641707,-151.0,0.00013919,2]
[400973966,1767876641716,-151.0,0.00013966,2]
[400973968,1767876641730,-199.19,0.00013966,2]
[400973970,1767876641739,-151.0,0.00013966,2]
[400973972,1767876641748,-1713.58,0.00014036,2]
[400973974,1767876641757,-166.66,0.00014139,2]
[400973976,1767876641766,-6072.10307611,0.00014264,2]
[400973977,1767876641775,-1456.22993856,0.00014309,2]
[400973980,1767876641784,-1713.58,0.00014451,2]
[400973982,1767876641794,-250.0,0.00014511,2]
[400973984,1767876641804,-166.66,0.00014577,2]
[400973985,1767876641815,-299.99271759,0.00014709,2]
[400973987,1767876641824,-6072.10307611,0.00014719,2]
[400973989,1767876641833,-173.15293317,0.00014744,2]
[400973991,1767876641842,-823.0,0.0001475,2]
[400973993,1767876641853,-3292.0,0.00014798,2]
[400973995,1767876641862,-1713.58,0.00014867,2]
[400973997,1767876641872,-4289.53082762,0.00015,2]
[400973999,1767876641882,-166.66,0.00015015,2]
[400974001,1767876641891,-6072.10307611,0.00015173,2]
[400974003,1767876641900,-1713.58,0.00015282,2]
[400974005,1767876641909,-666.35774147,0.00015301,2]
[400974007,1767876641918,-5000.0,0.000154,2]
[400974009,1767876641928,-11017.0,0.00015447,2]
[400974011,1767876641937,-166.66,0.00015453,2]
[400974013,1767876641946,-200.0,0.00015469,2]
[400974015,1767876641956,-6072.10307611,0.00015628,2]
[400974017,1767876641965,-1713.58,0.00015698,2]
[400974019,1767876641974,-3000.0,0.000157,2]
[400974021,1767876641983,-218.49130081,0.00015776,2]
[400974023,1767876641993,-1000.0,0.00015918,2]
[400974025,1767876642002,-4999.9999,0.0001595,2]
[400974027,1767876642011,-200.0,0.00015976,2]
[400974029,1767876642021,-157.72323008,0.00016067,2]
[400974031,1767876642030,-6072.10307611,0.00016082,2]
[400974033,1767876642039,-1713.58,0.00016114,2]
[400974035,1767876642048,-9999.99,0.00016116,2]
[400974037,1767876642057,-1152.0,0.00016206,2]
[400974039,1767876642066,-10000.0,0.00016252,2]
[400974041,1767876642076,-4609.0,0.00016278,2]
[400974043,1767876642085,-173.15293317,0.00016322,2]
[400974045,1767876642095,-3467.0,0.00016352,2]
[400974047,1767876642105,-1330.0,0.00016352,2]
[400974049,1767876642114,-614.0,0.00016352,2]
[400974051,1767876642123,-1405.0,0.00016352,2]
[400974053,1767876642132,-1266.0,0.00016352,2]
[400974055,1767876642142,-505.0,0.00016352,2]
[400974057,1767876642151,-914.0,0.00016352,2]
[400974059,1767876642160,-1201.0,0.00016352,2]
[400974061,1767876642169,-565.0,0.00016352,2]
[400974063,1767876642178,-150.0,0.00016352,2]
[400974065,1767876642188,-4819.0,0.00016352,2]
[400974067,1767876642197,-171.3,0.00016356,2]
[400974069,1767876642206,-500.0,0.00016438,2]
[400974071,1767876642215,-500.0,0.00016438,2]
[400974073,1767876642224,-289.40684115,0.00016438,2]
[400974075,1767876642234,-18810.89,0.00016438,2]
[400974077,1767876642243,-1000.0,0.00016515,2]
[400974079,1767876642252,-6072.10307611,0.00016537,2]
[400974081,1767876642262,-165.16,0.00016712,2]
[400974083,1767876642271,-329.3,0.00016826,2]
[400974085,1767876642280,-666.35774147,0.00016891,2]
[400974087,1767876642289,-1000.0,0.00016927,2]
[400974089,1767876642299,-329.3,0.00016933,2]
[400974091,1767876642308,-50623.16,0.00016986,2]
[400974093,1767876642317,-6072.10307611,0.00016991,2]
[400974095,1767876642326,-250.0,0.00017,2]
[400974097,1767876642336,-329.3,0.00017039,2]
[400974099,1767876642345,-157.72323008,0.00017071,2]
[400974101,1767876642354,-1000.0,0.00017112,2]
[400974103,1767876642363,-329.3,0.00017146,2]
[400974105,1767876642372,-1000.0,0.00017149,2]
[400974107,1767876642382,-3181.571,0.00017218,2]
[400974109,1767876642393,-167.212,0.00017218,2]
[400974111,1767876642402,-1000.0,0.00017219,2]
[400974113,1767876642412,-168.0,0.00017249,2]
[400974115,1767876642421,-329.3,0.00017253,2]
[400974117,1767876642430,-168.0,0.00017266,2]
[400974119,1767876642439,-329.3,0.0001736,2]
[400974121,1767876642448,-1000.0,0.00017407,2]
[400974123,1767876642457,-1000.0,0.00017425,2]
[400974125,1767876642467,-1000.0,0.00017444,2]
[400974127,1767876642476,-6072.10307611,0.00017446,2]
[400974129,1767876642486,-329.3,0.00017466,2]
[400974131,1767876642496,-150.0,0.00017486,2]
[400974133,1767876642505,-2000.0,0.000175,2]
[400974135,1767876642514,-1000.0,0.00017525,2]
[400974138,1767876642524,-329.3,0.00017573,2]
[400974141,1767876642533,-1000.0,0.00017576,2]
[400974143,1767876642543,-3708.31327473,0.0001764,2]
[400974145,1767876642552,-268.0,0.00017642,2]
[400974147,1767876642561,-329.3,0.0001768,2]
[400974149,1767876642571,-1000.0,0.00017709,2]
[400974151,1767876642580,-500.0,0.00017724,2]
[400974155,1767876642589,-500.0,0.00017724,2]
[400974158,1767876642599,-500.0,0.00017724,2]
[400974161,1767876642609,-150.0,0.00017724,2]
[400974164,1767876642618,-150.0,0.00017724,2]
[400974167,1767876642627,-150.0,0.00017724,2]
[400974170,1767876642636,-500.0,0.00017724,2]
[400974173,1767876642646,-150.0,0.00017724,2]
[400974175,1767876642655,-150.0,0.00017724,2]
[400974177,1767876642664,-500.0,0.00017724,2]
[400974179,1767876642675,-500.0,0.00017724,2]
[400974181,1767876642684,-150.0,0.00017724,2]
[400974183,1767876642695,-150.0,0.00017724,2]
[400974185,1767876642704,-9999.99,0.00017728,2]
[400974187,1767876642713,-1000.0,0.00017732,2]
[400974189,1767876642723,-150.0,0.00017762,2]
[400974191,1767876642732,-1000.0,0.00017766,2]
[400974193,1767876642742,-500.0,0.00017779,2]
[400974195,1767876642751,-500.0,0.00017779,2]
[400974197,1767876642760,-500.0,0.00017779,2]
[400974199,1767876642769,-150.0,0.00017779,2]
[400974200,1767876642779,-150.0,0.00017779,2]
[400974201,1767876642788,-419.97512683,0.00017779,2]
[400974202,1767876642799,-500.0,0.00017779,2]
[400974203,1767876642811,-500.0,0.00017779,2]
[400974204,1767876642821,-150.0,0.00017779,2]
[400974205,1767876642832,-329.3,0.00017787,2]
[400974206,1767876642842,-309.0,0.00017796,2]
[400974207,1767876642851,-1613.0,0.00017807,2]
[400974208,1767876642861,-439.78730998,0.00017831,2]
[400974209,1767876642870,-173.0,0.00017834,2]
[400974210,1767876642882,-182.10117033,0.00017834,2]
[400974211,1767876642891,-500.0,0.00017834,2]
[400974213,1767876642901,-200.0,0.00017834,2]
[400974214,1767876642910,-200.0,0.00017834,2]
[400974216,1767876642920,-500.0,0.00017834,2]
[400974218,1767876642930,-500.0,0.00017834,2]
[400974220,1767876642940,-200.0,0.00017834,2]
[400974222,1767876642950,-272.405,0.00017873,2]
[400974224,1767876642959,-500.0,0.00017888,2]
[400974226,1767876642968,-500.0,0.00017888,2]
[400974228,1767876642978,-1000.0,0.00017892,2]
[400974230,1767876642987,-329.3,0.00017893,2]
[400974232,1767876642997,-173.15293317,0.000179,2]
[400974234,1767876643007,-25000.0,0.000179,3]
[400974236,1767876643016,-25000.0,0.000179,3]
[400974238,1767876643026,-7198.42098085,0.000179,3]
[400974240,1767876643035,-6072.10307611,0.000179,2]
[400974242,1767876643045,-423.76529882,0.000179,2]
[400974244,1767876643054,-407.36190832,0.000179,2]
[400974246,1767876643063,-23965.2139512,0.000179,2]
[400974248,1767876643072,-1037.72021867,0.000179,2]
[400974250,1767876643081,-6453.0,0.00017906,2]
[400974252,1767876643091,-500.0,0.00017943,2]
[400974254,1767876643100,-800.0,0.0001797,2]
[400974256,1767876643109,-352.9335528,0.00017973,2]
[400974258,1767876643118,-500.0,0.00017973,2]
[400974260,1767876643128,-500.0,0.00017973,2]
[400974262,1767876643137,-235.35795411,0.00017973,2]
[400974264,1767876643146,-505.27205439,0.00017973,2]
[400974266,1767876643155,-500.0,0.00017973,2]
[400974268,1767876643165,-500.0,0.00017973,2]
[400974289,1767876643336,-500.0,0.00017973,2]
[400974293,1767876643366,-500.0,0.00017973,2]
[400974296,1767876643376,-500.0,0.00017973,2]
[400974299,1767876643387,-500.0,0.00017973,2]
[400974302,1767876643397,-500.0,0.00017973,2]
[400974304,1767876643408,-150.0,0.00017973,2]
[400974306,1767876643417,-150.0,0.00017973,2]
[400974309,1767876643427,-1000.0,0.00017991,2]
[400974311,1767876643437,-50892.1588946,0.00017992,2]
[400974313,1767876643446,-125443.7797668,0.00017992,2]
[400974315,1767876643457,-156.172729,0.00017997,2]
[400974317,1767876643466,-500.0,0.00017998,2]
[400974319,1767876643476,-300.0,0.00017999,2]
[400974321,1767876643485,-404.32200531,0.00017999,2]